[Event "*** Titled Tuesday Blitz"]
[Site "Chess.com"]
[Date "2020.04.14"]
[Round "1"]
[White "crazy_but_lazy"]
[Black "Lagmantr"]
[Result "1-0"]
[WhiteElo "2410"]
[BlackElo "2737"]
[TimeControl "180+1"]
[EndTime "10:08:51 PDT"]
[Termination "crazy_but_lazy won on time"]

1. d4 {[%clk 0:02:59.6]} 1... c6 {[%clk 0:02:57.7]} 2. c4 {[%clk 0:02:58.8]}
2... d5 {[%clk 0:02:56.9]} 3. cxd5 {[%clk 0:02:59.7]} 3... Nf6 {[%clk
0:02:56.2]} 4. dxc6 {[%clk 0:02:51.2]} 4... Nxc6 {[%clk 0:02:56.9]} 5. Nf3
{[%clk 0:02:51.7]} 5... e5 {[%clk 0:02:54.3]} 6. e3 {[%clk 0:02:36.4]} 6... exd4
{[%clk 0:02:53.2]} 7. Nxd4 {[%clk 0:02:35.8]} 7... Nxd4 {[%clk 0:02:48.3]} 8.
Qxd4 {[%clk 0:02:31]} 8... Qxd4 {[%clk 0:02:43.1]} 9. exd4 {[%clk 0:02:31.2]}
9... Ne4 {[%clk 0:02:38.7]} 10. Nc3 {[%clk 0:01:49.6]} 10... Bb4 {[%clk
0:02:30.5]} 11. Bb5+ {[%clk 0:01:49.9]} 11... Bd7 {[%clk 0:02:21.2]} 12. Bxd7+
{[%clk 0:01:49.9]} 12... Kxd7 {[%clk 0:02:21.6]} 13. Bd2 {[%clk 0:01:50.5]}
13... Nxd2 {[%clk 0:02:18.8]} 14. Kxd2 {[%clk 0:01:50.3]} 14... Rhd8 {[%clk
0:02:17.8]} 15. Rhe1 {[%clk 0:01:40.7]} 15... Rac8 {[%clk 0:02:11.9]} 16. Kd3
{[%clk 0:01:30.2]} 16... Bd6 {[%clk 0:02:04.8]} 17. g3 {[%clk 0:01:24]} 17... a6
{[%clk 0:01:58.7]} 18. Rac1 {[%clk 0:01:21.4]} 18... Bb4 {[%clk 0:01:51.6]} 19.
a3 {[%clk 0:01:05.4]} 19... Ba5 {[%clk 0:01:46.4]} 20. b4 {[%clk 0:00:56.3]}
20... Bb6 {[%clk 0:01:45.7]} 21. Na4 {[%clk 0:00:35.6]} 21... Ba7 {[%clk
0:01:45]} 22. Nc5+ {[%clk 0:00:35.3]} 22... Bxc5 {[%clk 0:01:43.1]} 23. bxc5
{[%clk 0:00:31]} 23... Rc6 {[%clk 0:01:39.7]} 24. Rb1 {[%clk 0:00:27.5]} 24...
Rb8 {[%clk 0:01:29.2]} 25. Re2 {[%clk 0:00:20.5]} 25... b5 {[%clk 0:01:28.4]}
26. Rbe1 {[%clk 0:00:19.4]} 26... Re6 {[%clk 0:01:27.4]} 27. d5 {[%clk
0:00:19.2]} 27... Rxe2 {[%clk 0:01:25.8]} 28. Rxe2 {[%clk 0:00:20.1]} 28... b4
{[%clk 0:01:23.1]} 29. Rb2 {[%clk 0:00:18.2]} 29... bxa3 {[%clk 0:00:48]} 30.
Ra2 {[%clk 0:00:18.6]} 30... Rb3+ {[%clk 0:00:43]} 31. Kc4 {[%clk 0:00:19]}
31... Rf3 {[%clk 0:00:41.6]} 32. Kb4 {[%clk 0:00:18.5]} 32... Rd3 {[%clk
0:00:34.1]} 33. Rxa3 {[%clk 0:00:16.9]} 33... Rd4+ {[%clk 0:00:33.7]} 34. Ka5
{[%clk 0:00:16]} 34... Rxd5 {[%clk 0:00:32.8]} 35. Kb6 {[%clk 0:00:16.4]} 35...
Rd2 {[%clk 0:00:28.2]} 36. c6+ {[%clk 0:00:16]} 36... Kc8 {[%clk 0:00:24.9]} 37.
Rxa6 {[%clk 0:00:14.2]} 37... Rb2+ {[%clk 0:00:24.4]} 38. Kc5 {[%clk 0:00:14.5]}
38... Rxf2 {[%clk 0:00:23.4]} 39. Ra8+ {[%clk 0:00:13.4]} 39... Kc7 {[%clk
0:00:22.4]} 40. Ra7+ {[%clk 0:00:14.3]} 40... Kb8 {[%clk 0:00:21.5]} 41. Re7
{[%clk 0:00:12.1]} 41... Rxh2 {[%clk 0:00:18.6]} 42. Rxf7 {[%clk 0:00:12.2]}
42... Rh5+ {[%clk 0:00:16.6]} 43. Kd6 {[%clk 0:00:11.8]} 43... Rh1 {[%clk
0:00:13.2]} 44. c7+ {[%clk 0:00:11.8]} 44... Kb7 {[%clk 0:00:12.3]} 45. Rxg7
{[%clk 0:00:10.7]} 45... Rd1+ {[%clk 0:00:11.4]} 46. Ke5 {[%clk 0:00:10.9]}
46... h5 {[%clk 0:00:10.4]} 47. Kf4 {[%clk 0:00:10.8]} 47... Rd4+ {[%clk
0:00:09.2]} 48. Kg5 {[%clk 0:00:08.3]} 48... Rd5+ {[%clk 0:00:06.2]} 49. Kh6
{[%clk 0:00:08.2]} 49... Rc5 {[%clk 0:00:06.6]} 50. Rg5 {[%clk 0:00:05.9]} 50...
Rc1 {[%clk 0:00:06.2]} 51. Kxh5 {[%clk 0:00:05.9]} 51... Kxc7 {[%clk 0:00:06.7]}
52. Rd5 {[%clk 0:00:06.3]} 1-0

[Event "*** Titled Tuesday Blitz"]
[Site "Chess.com"]
[Date "2020.04.14"]
[Round "1"]
[White "kingandqueen2017"]
[Black "Semetey"]
[Result "1-0"]
[WhiteElo "2280"]
[BlackElo "2563"]
[TimeControl "180+1"]
[EndTime "10:08:58 PDT"]
[Termination "kingandqueen2017 won by checkmate"]

1. d4 {[%clk 0:03:00.9]} 1... d5 {[%clk 0:02:50.3]} 2. c4 {[%clk 0:02:59.6]}
2... e6 {[%clk 0:02:17.4]} 3. Nc3 {[%clk 0:02:58.3]} 3... Nf6 {[%clk 0:02:05.7]}
4. cxd5 {[%clk 0:02:57.7]} 4... exd5 {[%clk 0:02:04.6]} 5. Bg5 {[%clk 0:02:57]}
5... Nbd7 {[%clk 0:02:03.8]} 6. e3 {[%clk 0:02:56.3]} 6... c6 {[%clk 0:02:03.5]}
7. Bd3 {[%clk 0:02:56]} 7... Be7 {[%clk 0:02:03.7]} 8. Nge2 {[%clk 0:02:55.1]}
8... O-O {[%clk 0:02:03.8]} 9. Qc2 {[%clk 0:02:54.8]} 9... Re8 {[%clk 0:02:04]}
10. O-O {[%clk 0:02:53.8]} 10... Ne4 {[%clk 0:02:03.8]} 11. Bxe7 {[%clk
0:02:34.2]} 11... Qxe7 {[%clk 0:02:03.2]} 12. Bxe4 {[%clk 0:02:33.5]} 12... dxe4
{[%clk 0:02:03.2]} 13. Ng3 {[%clk 0:02:33.7]} 13... Nf6 {[%clk 0:02:03.2]} 14.
Rfd1 {[%clk 0:02:32]} 14... Bg4 {[%clk 0:01:48.9]} 15. Rd2 {[%clk 0:02:30.8]}
15... Rad8 {[%clk 0:01:48.6]} 16. h3 {[%clk 0:02:30.2]} 16... Bh5 {[%clk
0:01:40.8]} 17. Nxh5 {[%clk 0:02:18.8]} 17... Nxh5 {[%clk 0:01:37.3]} 18. d5
{[%clk 0:02:18.1]} 18... cxd5 {[%clk 0:01:37.1]} 19. Rxd5 {[%clk 0:02:17]} 19...
Nf6 {[%clk 0:01:35.9]} 20. Rxd8 {[%clk 0:02:16]} 20... Rxd8 {[%clk 0:01:35.3]}
21. Rd1 {[%clk 0:02:15.9]} 21... Rxd1+ {[%clk 0:01:31.9]} 22. Qxd1 {[%clk
0:02:14.7]} 22... h6 {[%clk 0:01:19.6]} 23. Qc2 {[%clk 0:01:57.6]} 23... Qc5
{[%clk 0:01:15.6]} 24. Qa4 {[%clk 0:01:51.7]} 24... g6 {[%clk 0:00:44.4]} 25.
Qb5 {[%clk 0:01:26.8]} 25... Qxb5 {[%clk 0:00:42.1]} 26. Nxb5 {[%clk 0:01:26.6]}
26... a6 {[%clk 0:00:41.5]} 27. Nd6 {[%clk 0:01:26.4]} 27... b5 {[%clk
0:00:40.8]} 28. b4 {[%clk 0:01:22.4]} 28... Kf8 {[%clk 0:00:38.6]} 29. Nb7
{[%clk 0:01:21]} 29... Nd7 {[%clk 0:00:38.5]} 30. Kf1 {[%clk 0:01:09.1]} 30...
Ke7 {[%clk 0:00:37]} 31. Ke2 {[%clk 0:01:09.3]} 31... f5 {[%clk 0:00:31.1]} 32.
h4 {[%clk 0:01:07.1]} 32... Ke6 {[%clk 0:00:27.4]} 33. Kd2 {[%clk 0:01:01]}
33... Kd5 {[%clk 0:00:25.2]} 34. Kc3 {[%clk 0:00:52.7]} 34... Ne5 {[%clk
0:00:24.7]} 35. Nc5 {[%clk 0:00:51.5]} 35... a5 {[%clk 0:00:24.7]} 36. Nb3
{[%clk 0:00:40.8]} 36... a4 {[%clk 0:00:15.2]} 37. Nd4 {[%clk 0:00:39.9]} 37...
Nd3 {[%clk 0:00:13.4]} 38. f4 {[%clk 0:00:30.6]} 38... exf3 {[%clk 0:00:10.5]}
39. Kxd3 {[%clk 0:00:30.1]} 39... fxg2 {[%clk 0:00:10.5]} 40. Nf3 {[%clk
0:00:25.3]} 40... g5 {[%clk 0:00:08.7]} 41. hxg5 {[%clk 0:00:21.4]} 41... hxg5
{[%clk 0:00:06.3]} 42. a3 {[%clk 0:00:20.5]} 42... g4 {[%clk 0:00:06.4]} 43. Ng1
{[%clk 0:00:20.6]} 43... Ke5 {[%clk 0:00:06.7]} 44. Ne2 {[%clk 0:00:20.7]} 44...
Kd5 {[%clk 0:00:06.7]} 45. Nf4+ {[%clk 0:00:20]} 45... Ke5 {[%clk 0:00:07]} 46.
Nxg2 {[%clk 0:00:20.2]} 46... g3 {[%clk 0:00:07.5]} 47. Nf4 {[%clk 0:00:20.3]}
47... Kd6 {[%clk 0:00:07.1]} 48. Ke2 {[%clk 0:00:19.9]} 48... Ke5 {[%clk
0:00:07.3]} 49. Kf3 {[%clk 0:00:19.1]} 49... g2 {[%clk 0:00:07.7]} 50. Nxg2
{[%clk 0:00:17.3]} 50... Kd5 {[%clk 0:00:08]} 51. Nh4 {[%clk 0:00:15.9]} 51...
Kc4 {[%clk 0:00:07.8]} 52. Nxf5 {[%clk 0:00:16]} 52... Kb3 {[%clk 0:00:08.4]}
53. e4 {[%clk 0:00:16.4]} 53... Kxa3 {[%clk 0:00:09]} 54. e5 {[%clk 0:00:16.8]}
54... Kxb4 {[%clk 0:00:09.5]} 55. e6 {[%clk 0:00:17]} 55... a3 {[%clk
0:00:10.1]} 56. Ne3 {[%clk 0:00:15.8]} 56... a2 {[%clk 0:00:10.6]} 57. e7 {[%clk
0:00:15.5]} 57... Kb3 {[%clk 0:00:10.8]} 58. e8=Q {[%clk 0:00:11.7]} 58... a1=Q
{[%clk 0:00:06.9]} 59. Qxb5+ {[%clk 0:00:11.6]} 59... Ka2 {[%clk 0:00:05.7]} 60.
Qa4+ {[%clk 0:00:10]} 60... Kb2 {[%clk 0:00:06]} 61. Nc4+ {[%clk 0:00:09.5]}
61... Kb1 {[%clk 0:00:06.4]} 62. Qd1+ {[%clk 0:00:08.4]} 62... Ka2 {[%clk
0:00:06.6]} 63. Qc2+ {[%clk 0:00:08.6]} 63... Qb2 {[%clk 0:00:06.2]} 64. Qxb2#
{[%clk 0:00:08.9]} 1-0

[Event "*** Titled Tuesday Blitz"]
[Site "Chess.com"]
[Date "2020.04.14"]
[Round "1"]
[White "crescentmoon2411"]
[Black "korason34"]
[Result "1-0"]
[WhiteElo "2897"]
[BlackElo "2474"]
[TimeControl "180+1"]
[EndTime "10:09:01 PDT"]
[Termination "crescentmoon2411 won by resignation"]

1. e4 {[%clk 0:03:00.6]} 1... e5 {[%clk 0:02:46.7]} 2. Nf3 {[%clk 0:03:00.1]}
2... Nc6 {[%clk 0:02:46.2]} 3. Bb5 {[%clk 0:02:58.2]} 3... a6 {[%clk 0:02:38.9]}
4. Bxc6 {[%clk 0:02:58.1]} 4... dxc6 {[%clk 0:02:32.6]} 5. d4 {[%clk 0:02:57.8]}
5... exd4 {[%clk 0:02:32]} 6. Qxd4 {[%clk 0:02:57.9]} 6... Qxd4 {[%clk
0:02:32.5]} 7. Nxd4 {[%clk 0:02:58.5]} 7... Bd7 {[%clk 0:02:33.4]} 8. Nc3 {[%clk
0:02:55]} 8... O-O-O {[%clk 0:02:33.7]} 9. Bf4 {[%clk 0:02:51]} 9... f6 {[%clk
0:02:26.4]} 10. O-O-O {[%clk 0:02:50]} 10... Ne7 {[%clk 0:02:22.2]} 11. Rd2
{[%clk 0:02:44.9]} 11... c5 {[%clk 0:02:21.2]} 12. Nde2 {[%clk 0:02:42.2]} 12...
Ng6 {[%clk 0:02:18.8]} 13. Bg3 {[%clk 0:02:40.8]} 13... Bc6 {[%clk 0:02:15.4]}
14. Rxd8+ {[%clk 0:02:39.4]} 14... Kxd8 {[%clk 0:02:16.3]} 15. Rd1+ {[%clk
0:02:38]} 15... Kc8 {[%clk 0:02:16.2]} 16. h4 {[%clk 0:02:27.8]} 16... h5 {[%clk
0:02:12.6]} 17. Nd5 {[%clk 0:02:19.1]} 17... Bxd5 {[%clk 0:02:11.7]} 18. Rxd5
{[%clk 0:02:19.1]} 18... Be7 {[%clk 0:02:12]} 19. Nc3 {[%clk 0:01:56.3]} 19...
c6 {[%clk 0:02:11.3]} 20. Rf5 {[%clk 0:01:47.5]} 20... Nf8 {[%clk 0:02:09.2]}
21. Na4 {[%clk 0:01:45.5]} 21... b5 {[%clk 0:01:58.3]} 22. Nc3 {[%clk
0:01:38.9]} 22... Ne6 {[%clk 0:01:55]} 23. Ne2 {[%clk 0:01:35.5]} 23... g6
{[%clk 0:01:51.4]} 24. Rf3 {[%clk 0:01:35.4]} 24... Rd8 {[%clk 0:01:50.9]} 25.
Rd3 {[%clk 0:01:15.4]} 25... Nd4 {[%clk 0:01:50.5]} 26. Kd2 {[%clk 0:01:07.1]}
26... Bf8 {[%clk 0:01:40.2]} 27. c3 {[%clk 0:01:02.3]} 27... Bh6+ {[%clk
0:01:38.9]} 28. Bf4 {[%clk 0:00:54.5]} 28... g5 {[%clk 0:01:26.8]} 29. hxg5
{[%clk 0:00:51]} 29... fxg5 {[%clk 0:01:26.7]} 30. Be3 {[%clk 0:00:49.8]} 30...
Ne6 {[%clk 0:01:23.2]} 31. Rxd8+ {[%clk 0:00:49.1]} 31... Kxd8 {[%clk
0:01:24.1]} 32. Ng3 {[%clk 0:00:49.5]} 32... Bg7 {[%clk 0:01:22.8]} 33. Nxh5
{[%clk 0:00:48.8]} 33... Be5 {[%clk 0:01:23]} 34. g3 {[%clk 0:00:46.4]} 34... g4
{[%clk 0:01:23.2]} 35. Nf4 {[%clk 0:00:45.3]} 35... Ng5 {[%clk 0:01:22.3]} 36.
Ke2 {[%clk 0:00:41.5]} 36... c4 {[%clk 0:01:18.8]} 37. Ng6 {[%clk 0:00:40.6]}
37... Nf7 {[%clk 0:01:16.1]} 38. f4 {[%clk 0:00:38.2]} 38... gxf3+ {[%clk
0:01:14.7]} 39. Kxf3 {[%clk 0:00:38.5]} 39... Kd7 {[%clk 0:01:15.5]} 40. Bf4
{[%clk 0:00:36.5]} 40... Bg7 {[%clk 0:01:14.4]} 41. e5 {[%clk 0:00:34.3]} 41...
Ke6 {[%clk 0:01:13.4]} 42. Ke4 {[%clk 0:00:34.5]} 42... c5 {[%clk 0:01:13.6]}
43. g4 {[%clk 0:00:31]} 43... a5 {[%clk 0:01:11.9]} 44. g5 {[%clk 0:00:23.8]}
44... b4 {[%clk 0:01:12]} 45. Be3 {[%clk 0:00:14.6]} 45... Nxe5 {[%clk
0:01:08.5]} 46. Nf4+ {[%clk 0:00:13.1]} 46... Kf7 {[%clk 0:00:55.2]} 47. Bxc5
{[%clk 0:00:09.1]} 47... bxc3 {[%clk 0:00:44.8]} 48. bxc3 {[%clk 0:00:09.2]}
48... Nc6 {[%clk 0:00:43.8]} 49. Kd5 {[%clk 0:00:07.3]} 49... Ne5 {[%clk
0:00:43.6]} 50. Bd4 {[%clk 0:00:06.9]} 50... Nd3 {[%clk 0:00:39.9]} 51. g6+
{[%clk 0:00:06.8]} 51... Kg8 {[%clk 0:00:37.7]} 52. Ne6 {[%clk 0:00:07.1]} 52...
Bxd4 {[%clk 0:00:28.9]} 53. Kxd4 {[%clk 0:00:08]} 53... Nb2 {[%clk 0:00:29.1]}
54. Kc5 {[%clk 0:00:07.4]} 54... a4 {[%clk 0:00:27.3]} 55. Kb4 {[%clk
0:00:07.2]} 55... Kh8 {[%clk 0:00:24.5]} 56. Ka3 {[%clk 0:00:04.5]} 56... Nd1
{[%clk 0:00:24.5]} 57. Kb4 {[%clk 0:00:05.4]} 57... Nb2 {[%clk 0:00:24.5]} 58.
a3 {[%clk 0:00:05.8]} 58... Kg8 {[%clk 0:00:24]} 59. Nc7 {[%clk 0:00:05.3]}
59... Kg7 {[%clk 0:00:23.1]} 60. Nd5 {[%clk 0:00:05.6]} 60... Kxg6 {[%clk
0:00:22.3]} 61. Nb6 {[%clk 0:00:06.4]} 61... Kf5 {[%clk 0:00:20]} 62. Nxa4
{[%clk 0:00:06.6]} 62... Nd1 {[%clk 0:00:11.2]} 63. Kxc4 {[%clk 0:00:07]} 63...
Ke6 {[%clk 0:00:12.1]} 64. Nc5+ {[%clk 0:00:06.4]} 64... Kd6 {[%clk 0:00:13]}
65. Nb3 {[%clk 0:00:05.6]} 65... Kc6 {[%clk 0:00:13.2]} 66. a4 {[%clk 0:00:05]}
66... Nb2+ {[%clk 0:00:12.9]} 67. Kb4 {[%clk 0:00:05.4]} 67... Kb6 {[%clk
0:00:11.9]} 68. c4 {[%clk 0:00:04.8]} 68... Nd3+ {[%clk 0:00:11.3]} 69. Kc3
{[%clk 0:00:05.1]} 69... Ne5 {[%clk 0:00:11.4]} 70. Kd4 {[%clk 0:00:05.1]} 70...
Nc6+ {[%clk 0:00:11.7]} 71. Kd5 {[%clk 0:00:05.4]} 71... Nb4+ {[%clk 0:00:12.1]}
72. Kd6 {[%clk 0:00:05.7]} 72... Nd3 {[%clk 0:00:11.6]} 73. c5+ {[%clk
0:00:05.9]} 73... Nxc5 {[%clk 0:00:11.7]} 74. Nxc5 {[%clk 0:00:05.7]} 74... Ka5
{[%clk 0:00:12.1]} 75. Kc6 {[%clk 0:00:06.2]} 75... Kb4 {[%clk 0:00:12.5]} 76.
Kb6 {[%clk 0:00:06.8]} 76... Kc4 {[%clk 0:00:13.1]} 77. a5 {[%clk 0:00:07.6]}
77... Kd5 {[%clk 0:00:13.9]} 78. a6 {[%clk 0:00:08.5]} 1-0

[Event "*** Titled Tuesday Blitz"]
[Site "Chess.com"]
[Date "2020.04.14"]
[Round "1"]
[White "kinga2008"]
[Black "iLuusions"]
[Result "1/2-1/2"]
[WhiteElo "2201"]
[BlackElo "2571"]
[TimeControl "180+1"]
[EndTime "10:09:01 PDT"]
[Termination "Game drawn - insufficient material"]

1. e4 {[%clk 0:02:53]} 1... c5 {[%clk 0:02:55.7]} 2. Nf3 {[%clk 0:02:51.3]} 2...
e6 {[%clk 0:02:47.7]} 3. c3 {[%clk 0:02:41.6]} 3... Nf6 {[%clk 0:02:47.3]} 4.
Bd3 {[%clk 0:02:32.7]} 4... Nc6 {[%clk 0:02:46]} 5. Bc2 {[%clk 0:02:32.1]} 5...
c4 {[%clk 0:02:30.7]} 6. O-O {[%clk 0:02:28]} 6... d5 {[%clk 0:02:29.4]} 7. exd5
{[%clk 0:02:26.1]} 7... Nxd5 {[%clk 0:02:26.3]} 8. d4 {[%clk 0:02:24.3]} 8...
cxd3 {[%clk 0:02:25.6]} 9. Qxd3 {[%clk 0:02:19.8]} 9... Be7 {[%clk 0:02:16.4]}
10. Re1 {[%clk 0:02:17.3]} 10... Qc7 {[%clk 0:02:12.7]} 11. Na3 {[%clk
0:02:09.5]} 11... a6 {[%clk 0:02:12.1]} 12. Nc4 {[%clk 0:02:09]} 12... b5 {[%clk
0:02:11]} 13. Nce5 {[%clk 0:02:04.1]} 13... Bb7 {[%clk 0:01:12.6]} 14. Nxc6
{[%clk 0:01:54.7]} 14... Qxc6 {[%clk 0:01:09.6]} 15. Nd4 {[%clk 0:01:54.1]}
15... Qc7 {[%clk 0:01:08.2]} 16. Bb3 {[%clk 0:01:50.1]} 16... Rd8 {[%clk
0:01:08]} 17. Qe2 {[%clk 0:01:45.9]} 17... O-O {[%clk 0:01:06.1]} 18. Be3 {[%clk
0:01:37.2]} 18... Bf6 {[%clk 0:01:01.6]} 19. Rad1 {[%clk 0:01:31.4]} 19... Nf4
{[%clk 0:01:00.2]} 20. Bxf4 {[%clk 0:01:21.9]} 20... Qxf4 {[%clk 0:01:01.1]} 21.
g3 {[%clk 0:01:16.4]} 21... Qh6 {[%clk 0:00:43.7]} 22. Nf3 {[%clk 0:01:02.9]}
22... Qh5 {[%clk 0:00:40.6]} 23. Kg2 {[%clk 0:01:00.8]} 23... Qf5 {[%clk
0:00:35.2]} 24. Bc2 {[%clk 0:00:59.1]} 24... Bxf3+ {[%clk 0:00:34.9]} 25. Qxf3
{[%clk 0:00:57.3]} 25... Qxc2 {[%clk 0:00:34.9]} 26. Rxd8 {[%clk 0:00:55.6]}
26... Rxd8 {[%clk 0:00:35.3]} 27. Qc6 {[%clk 0:00:51.9]} 27... h5 {[%clk
0:00:33]} 28. Qxa6 {[%clk 0:00:50.9]} 28... Rd2 {[%clk 0:00:33.1]} 29. Qa8+
{[%clk 0:00:50.7]} 29... Kh7 {[%clk 0:00:33.2]} 30. Qf3 {[%clk 0:00:51.3]} 30...
Qf5 {[%clk 0:00:25.6]} 31. Qxf5+ {[%clk 0:00:50.8]} 31... exf5 {[%clk
0:00:26.5]} 32. Rb1 {[%clk 0:00:50.3]} 32... h4 {[%clk 0:00:25.6]} 33. Kf3
{[%clk 0:00:49.1]} 33... g5 {[%clk 0:00:25.3]} 34. Ke3 {[%clk 0:00:48.5]} 34...
Rd7 {[%clk 0:00:24.7]} 35. Rc1 {[%clk 0:00:43.4]} 35... g4 {[%clk 0:00:24]} 36.
Kf4 {[%clk 0:00:37.5]} 36... Kg6 {[%clk 0:00:24]} 37. Rc2 {[%clk 0:00:27.9]}
37... Re7 {[%clk 0:00:21.6]} 38. gxh4 {[%clk 0:00:26.7]} 38... Bxh4 {[%clk
0:00:20.1]} 39. f3 {[%clk 0:00:24.6]} 39... Bg5+ {[%clk 0:00:20.5]} 40. Kg3
{[%clk 0:00:24.9]} 40... Re3 {[%clk 0:00:21.4]} 41. Rf2 {[%clk 0:00:24]} 41...
Kh5 {[%clk 0:00:21.8]} 42. Kg2 {[%clk 0:00:20]} 42... gxf3+ {[%clk 0:00:21.3]}
43. Rxf3 {[%clk 0:00:20.9]} 43... Rxf3 {[%clk 0:00:20.5]} 44. Kxf3 {[%clk
0:00:21.8]} 44... Kg6 {[%clk 0:00:20.9]} 45. b3 {[%clk 0:00:19.5]} 45... Be7
{[%clk 0:00:21]} 46. a4 {[%clk 0:00:19.5]} 46... bxa4 {[%clk 0:00:20.9]} 47.
bxa4 {[%clk 0:00:20.4]} 47... Bc5 {[%clk 0:00:21.5]} 48. h4 {[%clk 0:00:17.3]}
48... Be7 {[%clk 0:00:15.3]} 49. a5 {[%clk 0:00:12.6]} 49... Bc5 {[%clk
0:00:09.5]} 50. Kf4 {[%clk 0:00:11.3]} 50... Kf6 {[%clk 0:00:09.8]} 51. a6
{[%clk 0:00:07.1]} 51... Bd6+ {[%clk 0:00:09.1]} 52. Kf3 {[%clk 0:00:06.7]}
52... Bc5 {[%clk 0:00:09.5]} 53. Kf4 {[%clk 0:00:06.7]} 53... Kg6 {[%clk
0:00:06.4]} 54. h5+ {[%clk 0:00:05.7]} 54... Kf6 {[%clk 0:00:06.3]} 55. h6
{[%clk 0:00:04.9]} 55... Bd6+ {[%clk 0:00:05.8]} 56. Kf3 {[%clk 0:00:04.3]}
56... Bb8 {[%clk 0:00:06.3]} 57. c4 {[%clk 0:00:02.9]} 57... Ba7 {[%clk
0:00:06]} 58. Kf4 {[%clk 0:00:01.3]} 58... Bb8+ {[%clk 0:00:06.2]} 59. Kf3
{[%clk 0:00:01.4]} 59... Ba7 {[%clk 0:00:05.8]} 60. Kf4 {[%clk 0:00:01.6]} 60...
Kg6 {[%clk 0:00:05.2]} 61. h7 {[%clk 0:00:01.3]} 61... Kxh7 {[%clk 0:00:05.3]}
62. Kxf5 {[%clk 0:00:01.4]} 62... Kg7 {[%clk 0:00:06.2]} 63. Ke5 {[%clk
0:00:01.4]} 63... Kg6 {[%clk 0:00:05.9]} 64. Kd6 {[%clk 0:00:01.8]} 64... f5
{[%clk 0:00:05.4]} 65. c5 {[%clk 0:00:02]} 65... f4 {[%clk 0:00:05.9]} 66. c6
{[%clk 0:00:02.5]} 66... f3 {[%clk 0:00:05.8]} 67. c7 {[%clk 0:00:02.7]} 67...
f2 {[%clk 0:00:06.4]} 68. c8=Q {[%clk 0:00:03]} 68... f1=Q {[%clk 0:00:06.7]}
69. Qg8+ {[%clk 0:00:01.6]} 69... Kh5 {[%clk 0:00:06.4]} 70. Qh7+ {[%clk
0:00:01.4]} 70... Kg4 {[%clk 0:00:07]} 71. Qg7+ {[%clk 0:00:01.7]} 71... Kh3
{[%clk 0:00:06.2]} 72. Qh6+ {[%clk 0:00:01.9]} 72... Kg2 {[%clk 0:00:06.4]} 73.
Qg6+ {[%clk 0:00:01.9]} 73... Kh1 {[%clk 0:00:05.7]} 74. Qh5+ {[%clk 0:00:01.7]}
74... Kg1 {[%clk 0:00:06]} 75. Qg5+ {[%clk 0:00:02.3]} 75... Kf2 {[%clk
0:00:06.3]} 76. Qf5+ {[%clk 0:00:02.2]} 76... Ke1 {[%clk 0:00:06.9]} 77. Qxf1+
{[%clk 0:00:02.9]} 77... Kxf1 {[%clk 0:00:07.8]} 78. Kc6 {[%clk 0:00:03.4]}
78... Bf2 {[%clk 0:00:08.7]} 79. Kb7 {[%clk 0:00:04.3]} 79... Ke2 {[%clk
0:00:09.1]} 80. a7 {[%clk 0:00:05.1]} 80... Bxa7 {[%clk 0:00:09.8]} 1/2-1/2